bitfinex/quotes_BTCUSD_20251016
["timestamp","ask_amount","ask_price","bid_price","bid_amount"]
[1760639743378,0.14000001,108390.0,108380.0,0.90383444]
[1760639743802,1e-08,108390.0,108380.0,1.24383444]
[1760639744440,1e-08,108390.0,108380.0,1.27024991]
[1760639744661,1e-08,108390.0,108380.0,1.24387444]
[1760639744889,1e-08,108390.0,108380.0,1.27028991]
[1760639745112,1e-08,108390.0,108380.0,6.76951606]
[1760639745345,8e-05,108400.0,108390.0,6.58556891]
[1760639745562,0.01839673,108440.0,108430.0,1.05985922]
[1760639745777,0.03991081,108470.0,108430.0,1.24382934]
[1760639746020,0.1552355,108470.0,108460.0,0.22058205]
[1760639746271,0.1552355,108470.0,108460.0,0.08969012]
[1760639746462,0.32122154,108470.0,108450.0,0.18440945]
[1760639746687,0.13683877,108470.0,108460.0,0.18439977]
[1760639746906,0.13683877,108470.0,108460.0,0.32871214]
[1760639747122,0.13683877,108470.0,108460.0,0.31027217]
[1760639749387,0.13683877,108470.0,108460.0,0.80949832]
[1760639749620,0.01683877,108470.0,108460.0,0.80949832]
[1760639750072,0.01683877,108470.0,108460.0,1.14949832]
[1760639750297,1e-08,108470.0,108460.0,1.14949832]
[1760639751388,1e-08,108470.0,108460.0,1.24373832]
[1760639751816,1e-08,108470.0,108460.0,1.14949832]
[1760639752028,1e-08,108470.0,108460.0,1.24373832]
[1760639752240,5.0002,108500.0,108490.0,0.56033113]
[1760639752467,5.0402,108500.0,108490.0,1.2435274]
[1760639752899,5.0402,108500.0,108490.0,0.74430125]
[1760639753128,5.0002,108500.0,108490.0,1.1492474]
[1760639753352,5.0002,108500.0,108490.0,1.2435274]
[1760639753569,5.0002,108500.0,108490.0,0.65002125]
[1760639753813,5.0002,108500.0,108490.0,0.31002125]
[1760639754036,5.0002,108500.0,108490.0,0.40430125]
[1760639754253,5.0002,108500.0,108490.0,0.9035274]
[1760639754702,5.0002,108500.0,108490.0,0.40430125]
[1760639755412,5.0002,108500.0,108490.0,0.9035274]
[1760639755629,5.0002,108500.0,108490.0,0.40430125]
[1760639755852,5.0002,108500.0,108490.0,0.9035274]
[1760639756083,4.55569203,108500.0,108490.0,1.2435274]
[1760639756307,4.453727,108500.0,108490.0,1.2435274]
[1760639756548,4.14276052,108500.0,108490.0,1.2435274]
[1760639756768,3.97596789,108500.0,108490.0,1.2435274]
[1760639757237,3.97596789,108500.0,108490.0,1.1492474]
[1760639757460,3.97596789,108500.0,108490.0,0.65002125]
[1760639757684,3.55906724,108500.0,108490.0,1.2434874]
[1760639757920,3.34569133,108500.0,108490.0,1.2434874]
[1760639758374,3.33403081,108500.0,108490.0,1.25778425]
[1760639758619,3.33403081,108500.0,108490.0,6.7590104]
[1760639758620,1.97374915,108500.0,108490.0,6.7590104]
[1760639758854,1.87986286,108500.0,108490.0,6.82834871]
[1760639759066,1.81577186,108500.0,108490.0,6.25978425]
[1760639759284,1.53821441,108500.0,108490.0,6.25778425]
[1760639759491,1.40551311,108500.0,108490.0,6.25778425]
[1760639759729,1.40551311,108500.0,108490.0,1.25978425]
[1760639760020,1.40551311,108500.0,108490.0,1.2454874]
[1760639760271,1.40551311,108500.0,108490.0,0.86930512]
[1760639760900,1.40551311,108500.0,108490.0,0.18393012]
[1760639761114,1.6198449,108500.0,108490.0,0.002]
[1760639761327,2.11907105,108500.0,108470.0,0.19360106]
[1760639761550,0.18434883,108490.0,108470.0,0.08969012]
[1760639761762,0.30434883,108490.0,108470.0,0.08969012]
[1760639761973,0.12,108490.0,108470.0,0.29251041]
[1760639762192,0.3043492,108490.0,108470.0,0.27407214]
[1760639762614,0.12,108490.0,108480.0,0.18436578]
[1760639762841,0.12,108490.0,108470.0,0.27407214]
[1760639763071,0.12,108490.0,108440.0,1.03285296]
[1760639763072,0.18438627,108470.0,108440.0,0.18443245]
[1760639763282,0.11,108470.0,108450.0,0.29249272]
[1760639763492,0.11,108470.0,108460.0,0.18439977]
[1760639763712,0.11,108470.0,108450.0,0.27409599]
[1760639764626,0.11,108470.0,108460.0,0.18439977]
[1760639764839,0.29438335,108470.0,108450.0,0.27409599]
[1760639765268,0.18439977,108460.0,108440.0,0.00015033]
[1760639765476,0.18441678,108450.0,108440.0,0.00015033]
[1760639765695,0.04,108450.0,108430.0,0.20283922]
[1760639765917,0.04015011,108450.0,108430.0,0.29252979]
[1760639766128,0.04015011,108450.0,108430.0,0.27413306]
[1760639766560,0.04015011,108450.0,108440.0,0.18443378]
[1760639767018,0.22456689,108450.0,108430.0,0.2741349]
[1760639767231,0.22456689,108450.0,108420.0,0.19366035]
[1760639767436,0.23378772,108450.0,108420.0,0.61415752]
[1760639767646,0.18443426,108440.0,108420.0,0.08969012]
[1760639767852,0.20443452,108440.0,108420.0,0.08969012]
[1760639768060,0.18445079,108430.0,108420.0,0.08969012]
[1760639768281,0.18443452,108440.0,108420.0,0.08969012]
[1760639768492,0.18443452,108440.0,108400.0,0.28864557]
[1760639768493,0.80288235,108440.0,108400.0,0.28864557]
[1760639768709,0.18445603,108430.0,108410.0,0.42969012]
[1760639768929,0.18445196,108430.0,108410.0,0.27417201]
[1760639769139,0.19445196,108430.0,108410.0,0.27417405]
[1760639769352,0.01,108430.0,108410.0,0.27417405]
[1760639769788,0.19445099,108430.0,108410.0,0.27417405]
[1760639770002,0.18310174,108440.0,108390.0,0.66474533]
[1760639770210,0.69289967,108430.0,108400.0,0.61418944]
[1760639770432,0.18446849,108420.0,108400.0,0.08969012]
[1760639770656,0.31446849,108420.0,108390.0,0.18451612]
[1760639770868,0.13,108420.0,108400.0,0.18450152]
[1760639771089,0.31446822,108420.0,108400.0,0.18450152]
[1760639771317,0.3144699,108420.0,108400.0,0.18450152]
[1760639772040,0.13,108420.0,108410.0,0.18448482]
[1760639772246,0.13,108420.0,108410.0,0.80958337]
[1760639772466,0.1844362,108440.0,108420.0,0.18446218]
[1760639772684,0.35350506,108450.0,108420.0,0.18446218]
[1760639772892,0.85710284,108450.0,108420.0,0.18446218]
[1760639773107,0.18443398,108440.0,108410.0,0.81880761]
[1760639773316,0.1844509,108430.0,108410.0,0.08969012]
[1760639773526,0.13,108430.0,108410.0,0.2926234]
[1760639773742,0.13,108430.0,108410.0,0.27417492]
[1760639773953,0.13,108430.0,108420.0,0.20047243]
[1760639774192,0.13,108430.0,108410.0,0.27417492]
[1760639774393,0.31445079,108430.0,108420.0,0.01844678]
[1760639774603,0.31445079,108430.0,108410.0,0.08969012]
[1760639775018,0.31445079,108430.0,108410.0,0.27417382]
[1760639775232,0.31445079,108430.0,108410.0,0.08969012]
[1760639775452,0.31445079,108430.0,108410.0,0.27417489]
[1760639775652,0.18446781,108420.0,108390.0,0.52451188]
[1760639775860,0.18445194,108430.0,108410.0,0.18448386]
[1760639776067,0.29445172,108430.0,108410.0,0.18448386]
[1760639776275,0.29445172,108430.0,108400.0,0.37829552]
[1760639776478,0.34523495,108430.0,108410.0,0.18448386]
[1760639776684,0.29445092,108430.0,108410.0,0.27936386]
[1760639776882,0.29445131,108430.0,108410.0,0.27936386]
[1760639777083,0.29445131,108430.0,108410.0,0.27936124]
[1760639777310,0.18446781,108420.0,108410.0,0.09488]
[1760639777522,0.01,108420.0,108400.0,0.27419128]
[1760639777727,0.19446786,108420.0,108410.0,4e-05]
[1760639777935,0.19446786,108420.0,108400.0,0.36902873]
[1760639778155,0.18451684,108400.0,108380.0,0.01839673]
[1760639778385,0.18451886,108390.0,108380.0,0.10808685]
[1760639778576,0.01,108390.0,108380.0,0.2793755]
[1760639779000,0.19451886,108390.0,108380.0,0.09484]
[1760639779270,0.19451886,108390.0,108370.0,4e-05]
[1760639779469,0.01,108390.0,108380.0,0.18603733]
[1760639779685,0.19451886,108390.0,108380.0,0.00150144]
[1760639779896,0.69374501,108390.0,108380.0,0.00150144]
[1760639780522,0.69374501,108390.0,108380.0,0.00050144]
[1760639780738,0.69374501,108390.0,108380.0,0.00150144]
[1760639780739,1.06996115,108390.0,108380.0,0.00150144]
[1760639780956,1.08413444,108390.0,108380.0,0.00150144]
[1760639781167,1.08413444,108390.0,108380.0,0.00050144]
[1760639781371,0.67459037,108390.0,108380.0,0.00050144]
[1760639781580,1.17381652,108390.0,108380.0,0.00050144]
[1760639781813,1.08413444,108390.0,108380.0,0.00050144]
[1760639782646,1.10380886,108390.0,108380.0,0.00050144]
[1760639783504,1.37688819,108390.0,108380.0,0.00050144]
[1760639783698,6.40149173,108390.0,108380.0,0.00050144]
[1760639783899,6.49117381,108390.0,108380.0,0.00050144]
[1760639784340,5.71886833,108390.0,108380.0,0.00050144]
[1760639784562,1.37688819,108390.0,108380.0,0.00050144]
[1760639784746,0.42006385,108390.0,108380.0,0.00050144]
[1760639784999,0.58590829,108390.0,108380.0,0.00050144]
[1760639785415,0.011,108390.0,108380.0,0.18503733]
[1760639786093,0.011,108390.0,108380.0,0.27472745]
[1760639786302,0.011,108390.0,108380.0,0.36964745]
[1760639786528,0.001,108390.0,108380.0,1.51813521]
[1760639786768,0.18448625,108410.0,108390.0,0.1845167]
[1760639787057,0.001,108390.0,108380.0,0.18515156]
[1760639787264,0.18451886,108390.0,108380.0,0.09546144]
[1760639787470,0.18451886,108390.0,108380.0,0.00050144]
[1760639787675,0.32451886,108390.0,108380.0,0.00050144]
[1760639788515,1.13304048,108390.0,108380.0,0.00050144]
[1760639788717,1.24243859,108390.0,108380.0,0.00050144]
[1760639788924,1.58243859,108390.0,108380.0,0.00050144]
[1760639789545,6.63984685,108390.0,108380.0,0.00050144]
[1760639789981,6.61524331,108390.0,108380.0,0.00050144]
[1760639790231,6.61624331,108390.0,108380.0,0.00050144]
[1760639791123,6.66601932,108390.0,108380.0,0.00050144]
[1760639791537,0.75425575,108390.0,108380.0,0.00050144]
[1760639791741,1.55126266,108390.0,108380.0,0.00050144]
[1760639791922,1.51845794,108390.0,108380.0,0.00050144]
[1760639792178,6.55126266,108390.0,108380.0,0.00050144]
[1760639792412,6.57633724,108390.0,108380.0,0.00050144]
[1760639792624,6.6332146,108390.0,108380.0,0.00050144]
[1760639793875,6.58343859,108390.0,108380.0,0.00050144]
[1760639794078,6.6328883,108390.0,108380.0,0.00050144]
[1760639794541,0.77090074,108390.0,108380.0,0.00050144]
[1760639794765,1.54320622,108390.0,108380.0,0.00050144]
[1760639795402,6.54320622,108390.0,108380.0,0.00050144]
[1760639795607,6.49375651,108390.0,108380.0,0.00050144]
[1760639796228,6.56025178,108390.0,108380.0,0.00050144]
[1760639796447,6.6329375,108390.0,108380.0,0.00050144]
[1760639797038,6.58343859,108390.0,108380.0,0.00050144]
[1760639798146,6.49375651,108390.0,108380.0,0.00050144]
[1760639798377,0.80397808,108390.0,108380.0,0.00050144]
[1760639798569,0.75446549,108390.0,108380.0,0.00050144]
[1760639798779,1.57628356,108390.0,108380.0,0.00050144]
[1760639799156,1.52677097,108390.0,108380.0,0.00050144]
[1760639799355,1.61645305,108390.0,108380.0,0.00050144]
[1760639799762,1.66596564,108390.0,108380.0,0.00050144]
[1760639800994,1.66596564,108390.0,108360.0,0.21225481]
[1760639800995,0.18453589,108380.0,108360.0,0.21225481]
[1760639801199,0.34129472,108380.0,108360.0,0.19394822]
[1760639801369,0.18455292,108370.0,108360.0,0.01860739]
[1760639801572,0.33426895,108370.0,108360.0,0.01860739]
[1760639801916,0.33426895,108370.0,108360.0,0.18472035]
[1760639802052,0.14971603,108370.0,108360.0,0.20317734]
[1760639802281,0.33426895,108370.0,108360.0,0.18472035]
[1760639802490,0.14971603,108370.0,108360.0,0.18472035]
[1760639802936,0.33426895,108370.0,108360.0,0.0001504]
[1760639803191,0.14971603,108370.0,108360.0,0.0001504]
[1760639803434,0.14971603,108370.0,108360.0,0.20317734]
[1760639803611,0.14971603,108370.0,108360.0,0.18472035]
[1760639804230,0.01,108370.0,108360.0,0.18472035]
[1760639804689,0.19455292,108370.0,108360.0,0.0001504]
[1760639805842,0.32130256,108370.0,108360.0,0.0001504]
[1760639806070,0.23162048,108370.0,108360.0,0.0001504]
[1760639806276,0.23088687,108370.0,108360.0,0.0001504]
[1760639806697,0.19381931,108370.0,108360.0,0.18472035]
[1760639806905,0.01026639,108370.0,108360.0,0.18472035]
[1760639807107,0.19481931,108370.0,108360.0,0.0001504]
[1760639807326,0.01026639,108370.0,108360.0,0.18472035]
[1760639807501,0.01026639,108370.0,108360.0,1.08289823]
[1760639807727,0.001,108370.0,108360.0,0.27441047]
[1760639808499,0.03303005,108400.0,108380.0,0.18453589]
[1760639808705,0.14,108400.0,108390.0,1.10114862]
[1760639808876,0.14,108400.0,108390.0,0.31039126]
[1760639809921,0.14,108400.0,108390.0,0.31139126]
[1760639810149,0.03303005,108430.0,108420.0,0.18446781]
[1760639810341,0.31760074,108430.0,108410.0,0.18448482]
[1760639810750,0.31760074,108430.0,108420.0,0.18446781]
[1760639811153,0.13314995,108430.0,108420.0,0.18446781]
[1760639811356,0.13314995,108430.0,108420.0,1.04646341]
[1760639811357,0.12050082,108430.0,108420.0,1.04646341]
[1760639812006,0.12050082,108430.0,108420.0,0.36911793]
[1760639812246,0.12050082,108430.0,108420.0,0.09496]
[1760639812247,0.30495161,108430.0,108420.0,0.09496]
[1760639812447,0.30495161,108430.0,108410.0,0.27944289]
[1760639812653,0.30495161,108430.0,108410.0,0.36913301]
[1760639812838,0.30495161,108430.0,108420.0,0.001]
[1760639813070,0.18448596,108420.0,108390.0,0.22069241]
[1760639813229,0.32448596,108420.0,108400.0,0.29264111]
[1760639813427,0.32448596,108420.0,108400.0,0.27419093]
[1760639814050,0.32448596,108420.0,108410.0,0.18448482]
[1760639814051,0.14,108420.0,108410.0,0.18448482]
[1760639814255,0.32446781,108420.0,108410.0,0.27417494]
[1760639814616,0.32446781,108420.0,108410.0,0.08969012]
[1760639815046,0.14,108420.0,108410.0,0.27417494]
[1760639815901,0.32446781,108420.0,108410.0,0.27417494]
[1760639816329,0.32446781,108420.0,108400.0,0.18450042]
[1760639816330,0.34429241,108420.0,108400.0,0.27938173]
[1760639816536,0.1598246,108420.0,108410.0,0.18448482]
[1760639816738,0.1598246,108420.0,108410.0,0.2029333]
[1760639816947,0.1598246,108420.0,108410.0,0.27417494]
[1760639817156,0.14,108420.0,108410.0,0.65035722]
[1760639817342,0.14,108420.0,108410.0,0.27417494]
[1760639817595,0.14,108420.0,108410.0,0.36909494]
[1760639818723,0.14,108420.0,108410.0,0.18461012]
[1760639818930,0.14,108420.0,108410.0,0.36909494]
[1760639819567,0.14,108420.0,108410.0,0.40527722]
[1760639819787,0.14,108420.0,108410.0,1.1775827]
[1760639820165,0.14,108420.0,108410.0,1.5175827]
[1760639820359,0.00050082,108430.0,108410.0,0.61417494]
[1760639820565,0.31495161,108430.0,108410.0,0.36905383]
[1760639820761,0.31495161,108430.0,108420.0,0.18446781]
[1760639821075,0.13050082,108430.0,108420.0,0.18446781]
[1760639821396,0.13050082,108430.0,108420.0,0.27415793]
[1760639821730,0.13050082,108430.0,108420.0,1.08264569]
[1760639822350,0.00050082,108430.0,108420.0,1.08264569]
[1760639822559,0.00050082,108430.0,108420.0,1.42264569]
[1760639822789,0.03141765,108470.0,108450.0,0.18441678]
[1760639823022,0.03141765,108470.0,108460.0,0.38744986]
[1760639823023,0.13854689,108470.0,108460.0,0.38744986]
[1760639823231,0.30453293,108470.0,108460.0,0.09492]
[1760639823431,0.30453293,108470.0,108450.0,0.27933678]
[1760639823553,0.12015016,108470.0,108460.0,0.01843997]
[1760639823758,0.30453293,108470.0,108460.0,0.01843997]
[1760639824284,0.18439977,108460.0,108450.0,0.08969012]
[1760639824491,0.30439977,108460.0,108450.0,0.08969012]
[1760639824698,0.18443378,108440.0,108410.0,0.98441016]
[1760639824914,0.18443378,108440.0,108420.0,0.08969012]
[1760639824915,0.18445128,108430.0,108420.0,0.08969012]
[1760639825272,0.18446781,108420.0,108400.0,0.18450134]
[1760639825490,0.3036912,108420.0,108400.0,0.27419196]
[1760639825931,0.29446918,108420.0,108400.0,0.27419196]
[1760639826147,0.2945192,108420.0,108400.0,0.27419196]
[1760639826366,0.11005002,108420.0,108410.0,0.2029333]
[1760639826603,0.29451783,108420.0,108400.0,0.27419196]
[1760639826821,0.29451783,108420.0,108410.0,0.18448482]
[1760639827038,0.11005002,108420.0,108410.0,0.29262342]
[1760639827292,5.002e-05,108420.0,108410.0,1.1775427]
[1760639827510,5.002e-05,108420.0,108410.0,1.5175427]
[1760639828605,5.002e-05,108420.0,108410.0,6.5175427]
[1760639828819,0.01839673,108470.0,108460.0,0.18439977]
[1760639829060,0.14844682,108470.0,108460.0,0.35902812]
[1760639829286,0.18439977,108460.0,108430.0,0.00922253]
[1760639829508,0.18441722,108450.0,108440.0,0.08969012]
[1760639829729,0.31441722,108450.0,108440.0,0.08969012]
[1760639829961,0.18443399,108470.0,108440.0,0.33797123]
[1760639830187,0.18440003,108460.0,108440.0,0.31952786]
[1760639830410,0.29440003,108460.0,108440.0,0.31952786]
[1760639830625,0.18441678,108450.0,108440.0,0.08969012]
[1760639830838,0.18440003,108460.0,108440.0,0.27412334]
[1760639831052,0.18440003,108460.0,108450.0,0.01844167]
[1760639831053,0.29440003,108460.0,108450.0,0.01844167]
[1760639831696,0.29439977,108460.0,108450.0,0.01844167]
[1760639832125,0.18441678,108450.0,108440.0,0.08969012]
[1760639832604,0.30441678,108450.0,108440.0,0.08969012]
[1760639832822,0.30441678,108450.0,108420.0,0.62858799]
[1760639833037,0.30441678,108450.0,108430.0,0.31032319]
[1760639833501,0.18443378,108440.0,108430.0,0.08969012]
[1760639833687,0.18445895,108430.0,108410.0,0.29782809]
[1760639833829,0.18445895,108430.0,108420.0,0.08969012]
[1760639833830,0.32445895,108430.0,108420.0,0.08969012]
[1760639834457,0.14,108430.0,108420.0,0.27415793]
[1760639835116,0.32445079,108430.0,108420.0,0.27415793]
[1760639835346,0.18445079,108430.0,108420.0,0.27415793]
[1760639835530,0.06,108430.0,108420.0,0.27415793]
[1760639835959,0.24445079,108430.0,108420.0,0.08969012]
[1760639836218,0.18448595,108410.0,108400.0,0.18450184]
[1760639836428,0.18448595,108410.0,108400.0,0.27469278]
[1760639836647,0.18448482,108410.0,108400.0,0.09019094]
[1760639836865,0.30448482,108410.0,108400.0,0.09019094]
[1760639837068,0.29948482,108410.0,108400.0,0.00050082]
[1760639837281,0.31927193,108410.0,108400.0,0.00050082]
[1760639837949,1.46694245,108410.0,108400.0,0.00050082]
[1760639838162,6.46694245,108410.0,108400.0,0.00050082]
[1760639838380,6.4999725,108410.0,108400.0,0.00050082]
[1760639838598,0.72766702,108410.0,108400.0,0.00050082]
[1760639838824,0.51281716,108410.0,108400.0,0.00050082]
[1760639839029,0.32427193,108410.0,108400.0,0.00050082]
[1760639839249,0.32427193,108410.0,108400.0,0.31087506]
[1760639839250,0.13978711,108410.0,108400.0,0.31087506]
[1760639839460,0.01978711,108430.0,108420.0,0.18446781]
[1760639839679,0.22260066,108450.0,108430.0,0.22061797]
[1760639839896,0.35260066,108450.0,108440.0,0.01744337]
[1760639840146,0.18443378,108440.0,108430.0,0.27414027]
[1760639840345,0.31443378,108440.0,108430.0,0.27414091]
[1760639840557,0.13,108440.0,108430.0,0.27414091]
[1760639842349,0.13,108440.0,108430.0,0.18445079]
[1760639842825,0.13,108440.0,108430.0,0.27414091]
[1760639843500,0.13,108440.0,108430.0,0.77236778]
[1760639843719,0.13,108440.0,108430.0,0.90359006]
[1760639844397,0.03312507,108470.0,108450.0,0.18441678]
[1760639844610,0.03312507,108470.0,108460.0,0.01843997]
[1760639844611,0.33765822,108470.0,108460.0,0.01843997]
[1760639845444,0.13993738,108470.0,108460.0,0.20283974]
[1760639845645,0.3375512,108470.0,108460.0,0.01843997]
[1760639846236,0.18439977,108460.0,108450.0,0.31028918]
[1760639846438,0.18439977,108460.0,108450.0,0.1258724]
[1760639846439,0.31439977,108460.0,108450.0,0.1258724]
[1760639846673,0.33418688,108460.0,108450.0,0.08969012]
[1760639846874,0.14978711,108460.0,108450.0,0.2741069]
[1760639847229,0.14978711,108460.0,108450.0,0.80851605]
[1760639847786,0.13,108460.0,108450.0,0.90355605]
[1760639848007,0.13,108460.0,108450.0,0.40532918]
[1760639848901,0.13,108460.0,108450.0,0.31028918]
[1760639850486,0.31439977,108460.0,108450.0,0.31028918]
[1760639850687,0.31439977,108460.0,108450.0,0.08969012]
[1760639850899,0.31439977,108460.0,108450.0,0.2741069]
[1760639851112,0.13,108460.0,108450.0,0.2741069]
[1760639851330,0.31439977,108460.0,108450.0,0.2741069]
[1760639851764,0.31439977,108460.0,108440.0,0.095]
[1760639851765,0.18441678,108450.0,108440.0,0.095]
[1760639851991,0.18443949,108440.0,108400.0,0.19372693]
[1760639852213,0.02982729,108440.0,108420.0,0.18469012]
[1760639852432,0.19543388,108440.0,108430.0,0.18445079]
[1760639852646,0.19443378,108440.0,108430.0,0.27414091]
[1760639852888,0.19443378,108440.0,108430.0,0.08969012]
[1760639853106,0.21426107,108440.0,108420.0,0.27946781]
[1760639853331,0.21426107,108440.0,108420.0,0.36915793]
[1760639853554,0.01,108440.0,108430.0,0.20289586]
[1760639853772,0.2042442,108450.0,108440.0,0.18443378]
[1760639854016,0.2542442,108450.0,108440.0,0.18443378]
[1760639854264,0.06982729,108450.0,108440.0,0.18443378]
[1760639854466,0.23441678,108450.0,108430.0,0.27414091]
[1760639854689,0.25424407,108450.0,108430.0,0.27414091]
[1760639855120,0.25424477,108450.0,108430.0,0.27414091]
[1760639855396,0.23441748,108450.0,108430.0,0.27414091]
[1760639855599,0.23442287,108450.0,108430.0,0.27414091]
[1760639856046,0.25424454,108450.0,108430.0,0.36910091]
[1760639856269,0.23441725,108450.0,108430.0,0.36910091]
[1760639856490,0.18543388,108440.0,108420.0,0.18446297]
[1760639856709,0.18445079,108430.0,108420.0,0.08969012]
[1760639856955,0.18446781,108420.0,108410.0,0.09496]
[1760639857164,0.18446781,108420.0,108410.0,0.18448482]
[1760639857601,0.01982729,108430.0,108410.0,0.18448482]
[1760639857853,0.03,108430.0,108420.0,0.20291459]
[1760639858073,0.03,108430.0,108420.0,0.18446781]
[1760639858553,0.03303005,108460.0,108440.0,0.18441883]
[1760639858793,0.34524077,108460.0,108430.0,0.69190019]
[1760639859031,0.18441678,108450.0,108440.0,0.18443275]
[1760639859280,0.01983465,108460.0,108450.0,0.18441678]
[1760639859493,0.20419952,108480.0,108460.0,0.18438839]
[1760639859726,0.20419952,108480.0,108450.0,0.28332773]
[1760639859727,0.18438444,108470.0,108450.0,0.28332773]
[1760639859935,0.18539987,108460.0,108440.0,0.19365443]
[1760639860159,0.12,108460.0,108450.0,0.27937608]
[1760639860382,0.30539987,108460.0,108450.0,0.18441678]
[1760639860586,0.30455001,108460.0,108450.0,0.18441678]
[1760639860991,0.30455001,108460.0,108440.0,0.37826455]
[1760639861402,0.18441678,108450.0,108440.0,0.3690439]
[1760639861654,0.20441678,108450.0,108440.0,0.18461012]
[1760639861855,0.20441678,108450.0,108430.0,0.19367332]
[1760639861856,0.18444902,108440.0,108410.0,0.71033266]
[1760639862069,0.18444902,108440.0,108430.0,0.18445079]
[1760639862285,0.21347075,108450.0,108430.0,0.27414091]
[1760639862493,0.13,108450.0,108440.0,0.20287715]
[1760639862697,0.13,108450.0,108440.0,0.40522618]
[1760639863909,0.31441678,108450.0,108440.0,0.3690439]
[1760639864254,0.13,108450.0,108440.0,0.3690439]
[1760639864688,0.31441678,108450.0,108440.0,0.18461012]
[1760639865094,0.31441678,108450.0,108440.0,0.3690439]
[1760639865304,0.13,108450.0,108440.0,0.3690439]
[1760639867154,0.13,108450.0,108440.0,0.09492]
[1760639867367,0.16930055,108450.0,108430.0,0.18444917]
[1760639867552,0.16930055,108450.0,108430.0,0.27413929]
[1760639867754,0.16930055,108450.0,108440.0,0.18443378]
[1760639867993,0.06,108450.0,108440.0,0.18443378]
[1760639868186,0.06,108450.0,108440.0,0.2741239]
[1760639870508,0.24441678,108450.0,108430.0,0.09488]
[1760639870677,0.24441678,108450.0,108440.0,0.18443378]
[1760639870878,0.06,108450.0,108440.0,0.29771715]
[1760639871086,0.24441678,108450.0,108440.0,0.27927378]
[1760639872024,0.06,108450.0,108440.0,0.27927378]
[1760639872334,0.06,108450.0,108440.0,0.3689639]
[1760639872475,0.06,108450.0,108440.0,0.86719077]
[1760639872676,0.24441678,108450.0,108440.0,0.86719077]
[1760639873055,0.24441678,108450.0,108440.0,0.3689639]
[1760639873259,0.06,108450.0,108440.0,0.3689639]
[1760639874042,0.24441678,108450.0,108440.0,0.3689639]
[1760639874657,0.24441678,108450.0,108440.0,0.2741239]
[1760639875059,0.06,108450.0,108440.0,0.3688839]
[1760639875305,0.24541688,108450.0,108430.0,0.22063071]
[1760639875516,0.24441678,108450.0,108440.0,0.27915378]
[1760639875717,0.24441678,108450.0,108430.0,0.40504083]
[1760639875886,0.18443378,108440.0,108430.0,0.31032083]
[1760639876043,0.19443378,108440.0,108430.0,0.36886091]
[1760639876688,0.18443378,108440.0,108430.0,0.36886091]
[1760639876901,0.18441678,108450.0,108440.0,0.18443378]
[1760639877098,0.31441678,108450.0,108440.0,0.18443378]
[1760639877490,0.31441678,108450.0,108440.0,0.27915378]
[1760639878151,0.18443378,108440.0,108430.0,0.40504319]
[1760639878359,0.18441678,108450.0,108430.0,0.27414091]
[1760639878532,0.18443378,108440.0,108430.0,0.1258724]
[1760639878735,0.22443378,108440.0,108430.0,0.36882091]
[1760639879119,0.22443378,108440.0,108430.0,0.18437012]
[1760639879314,0.22443378,108440.0,108430.0,0.36882091]
[1760639879557,0.22443378,108440.0,108430.0,0.18437012]
[1760639879979,0.22443378,108440.0,108430.0,0.36882091]
[1760639880404,0.04,108440.0,108430.0,0.27414091]
[1760639880584,0.18441727,108450.0,108430.0,0.36878091]
[1760639880771,0.18543388,108440.0,108430.0,0.36878091]
[1760639880951,0.18441727,108450.0,108440.0,0.18443378]
[1760639881139,0.30441727,108450.0,108430.0,0.36878091]
[1760639881652,0.30441737,108450.0,108440.0,0.18443378]
[1760639881841,0.12,108450.0,108440.0,0.20287715]
[1760639882036,0.12,108450.0,108440.0,0.18443378]
[1760639882427,0.12,108450.0,108440.0,0.80853305]
[1760639883149,0.00015024,108460.0,108450.0,0.18441678]
[1760639883337,0.12015024,108460.0,108450.0,0.40488918]
[1760639883552,0.12015024,108460.0,108450.0,0.90311605]
[1760639884238,0.12015024,108460.0,108450.0,0.90315605]
[1760639884916,0.00015024,108460.0,108450.0,1.24315605]
[1760639885124,1e-08,108460.0,108450.0,1.24315605]
[1760639885341,1e-08,108460.0,108450.0,6.24315605]
[1760639885545,1e-08,108460.0,108450.0,6.24319605]
[1760639885788,1e-08,108460.0,108450.0,1.24319605]
[1760639885998,1e-08,108460.0,108450.0,6.24319605]
[1760639886217,1e-08,108460.0,108450.0,6.74142292]
[1760639886438,1e-08,108460.0,108450.0,6.26553659]
[1760639886644,1e-08,108460.0,108450.0,5.76930972]
[1760639886820,1e-08,108460.0,108450.0,6.3359526]
[1760639887077,1e-08,108460.0,108450.0,6.83417947]
[1760639887290,1.40551311,108500.0,108490.0,0.68257565]
[1760639887493,1.40565165,108500.0,108490.0,0.90312805]
[1760639887926,1.40565165,108500.0,108490.0,0.74490118]
[1760639888136,1.40565165,108500.0,108490.0,1.24312805]
[1760639888378,1.40565165,108500.0,108490.0,1.24308805]
[1760639888807,1.40565165,108500.0,108490.0,1.14844805]
[1760639889015,1.40565165,108500.0,108490.0,1.24308805]
[1760639889711,1.40565165,108500.0,108490.0,0.31022118]
[1760639889924,1.40565165,108500.0,108490.0,0.1258724]
[1760639890134,0.18436912,108480.0,108450.0,0.71030121]
[1760639890347,0.18436912,108480.0,108460.0,0.08969012]
[1760639890348,0.18438277,108470.0,108460.0,0.08969012]
[1760639890788,0.18439977,108460.0,108450.0,4e-05]
[1760639890995,0.20439977,108460.0,108450.0,4e-05]
[1760639891830,0.70262664,108460.0,108450.0,4e-05]
[1760639892042,0.20439977,108460.0,108450.0,4e-05]
[1760639892427,0.20439977,108460.0,108450.0,0.18445678]
[1760639892845,0.20439977,108460.0,108450.0,4e-05]
[1760639896551,1.13230872,108460.0,108450.0,4e-05]
[1760639896965,6.18536041,108460.0,108450.0,4e-05]
[1760639897187,0.18445642,108440.0,108410.0,0.21210535]
[1760639897403,0.18545089,108430.0,108420.0,0.19904334]
[1760639897615,0.18545089,108430.0,108410.0,0.09019094]
[1760639897616,0.18446781,108420.0,108410.0,0.09019094]
[1760639897830,0.01,108420.0,108410.0,0.27467576]
[1760639898052,0.19446781,108420.0,108410.0,0.27467576]
[1760639898266,0.19446781,108420.0,108410.0,0.00050082]
[1760639899359,0.69269468,108420.0,108410.0,0.00150082]
[1760639899577,0.19446781,108420.0,108410.0,0.00050082]
[1760639901656,0.18445079,108430.0,108410.0,0.00050082]
[1760639901861,0.18546791,108420.0,108410.0,0.00050082]
[1760639902096,0.31446781,108420.0,108410.0,0.00050082]
[1760639902419,0.13,108420.0,108410.0,0.82753339]
[1760639902620,0.01839673,108450.0,108430.0,0.18445079]
[1760639902831,0.01839673,108450.0,108440.0,0.29256727]
[1760639902832,0.13839673,108450.0,108440.0,0.29256727]
[1760639903040,0.30441922,108450.0,108420.0,0.28846352]
[1760639903318,0.18443378,108440.0,108430.0,0.08969012]
[1760639903525,0.18445079,108430.0,108420.0,0.1258724]
[1760639903702,0.18443378,108440.0,108420.0,0.27415769]